Workbook

Sheet Inputs
A1: Instructions:
A2: 1. Enter the amount of each crop you plan to store in either column below (lbs or tons).
A3: 2. Then tab over to the Outputs sheet and "Refresh" the Pivot Table to see the results.
A5: Farm: | B5: Joe's Farm
B7: Quantity | D7: Crop
B8: lbs | C8: tons
D9: Artichoke (Globe)
D10: Artichoke (Jerusalem)
D11: Asparagus
D12: Basil
B13: 200 | D13: Beans (dry)
B14: 500 | D14: Bean (green)
D15: Bean (lima)
D16: Bean (Snap)
D17: Beet (bunched with tops)
B18: 700 | D18: Beet (topped)
D19: Broccoli
B20: 400 | D20: Brussels Sprouts
B21: 2000 | D21: Cabage
D22: Carrot (immature)
B23: 1200 | D23: Carrot (mature)
D24: Cauliflower
B25: 300 | D25: Celeriac
B26: 200 | D26: Celery
D27: Chard (swiss)
D28: Corn (Sweet)
D29: Cucumber
D30: Eggplant
D31: Endive
D32: Escarole
B33: 2500 | D33: Garlic (intact bulbs)
D34: Greens (baby greens salad mix)
D35: Kale
D36: Kohlrabi
B37: 400 | D37: Leeks (green)
D38: Lettuce (head)
D39: Melon (Cantaloupe)
D40: Melon (Honeydew)
D41: Melon (Watermelon)
D42: Okra
B43: 1000 | D43: Onion (cured)
D44: Onion (green)
D45: Parsley
B46: 2000 | D46: Parsnip
D47: Pea (green)
D48: Peppers (hot)
D49: Pepper (sweet)
B50: 4000 | D50: Potato (cured, for fresh consumption)
D51: Pumpkin
D52: Radish (topped, winter)
D53: Rhubarb
D54: Rutabega
B55: 100 | D55: Shallots
D56: Spinach
D57: Squash (Summer)
B58: 9000 | D58: Squash (winter)
B59: 300 | D59: Sweet Potato
D60: Tomato (Mature green)
D61: Tomato (firm ripe)
D62: Turnip

Sheet Outputs
A1: Crop Storage Planner
A2: Provided by UVM Extension Agricultural Engineering
A3: Version: 2015 08 24
A6: Instructions:
A7: 1. Enter the amount of each crop you plan to store on the inputs sheet.
A8: 2. Then "Refresh" the Pivot Table with the button above to see the results. Mac users will need to select "Data" and "Refresh All"
G10: http://blog.uvm.edu/cwcallah
A11: NOTES:
A12: 1. The crops are grouped by common temperature and humidity conditions based on data from USDA Handbook 66, Cornell University Cooperative Extension publications, and other industry sources. There are many different ways to accomlish good storage. We welcome your feedback based on actual experiences.
A13: 2. This tool is provided free of charge and as is. There may be bugs. We welcome your feedback and ideas for improvement. Email chris.callahan _at_ uvm.edu with feedback.
A14: 3. To determine the floor area required, consider having the product only take up 2/3 (67%) of the storage space. (i.e. divide the product volume above by 0.67). This allows open space for air circulation and also for people and product circulation. Then take that resulting number and divide by the height of the planned cooler. E.g., 1000 ft3 of Product Volume / 0.67 = 1,492 ft3. 1,492 ft2 / 7 ft height = 213 ft2. Or something like a 11'x20' floor area.
A15: 4. Product heat production is estimated using respiration data for each crop. This is a factor to be considered along with others in determining the cooling load required. A refrigeration specialist and/or equipment vendor should be consulted and provided this information in addition to cooler size and intended use. A good guide for conducting an overall cooling load is available here:
A16: http://www.heatcraftrpd.com/PDF%5CMisc%5CEM.pdf
A18: Farm:
A19: include | B19: 1
A21: Group | B21: Crop | C21: Lbs | D21: Optimum Temp (ºF ) | E21: Optimum RH (%) | F21: Group 3 Volume | G21: Product Respiration Heat Load (BTU/hr)
A22: 1 | B22: Beet (topped) | C22: 700 | D22: 33 | E22: 98 | F22: 30.43478261 | G22: 16.04166667
A23: 1 | B23: Brussels Sprouts | C23: 400 | D23: 32 | E23: 95 | F23: 16 | G23: 27.5
A24: 1 | B24: Cabage | C24: 2000 | D24: 32 | E24: >98 | F24: 117.6470588 | G24: 36.66666667
A25: 1 | B25: Carrot (mature) | C25: 1200 | D25: 32 | E25: >98 | F25: 54.54545455 | G25: 55
A26: 1 | B26: Celeriac | C26: 300 | D26: 34 | E26: 98 | F26: 7.142857143 | G26: 8.9375
A27: 1 | B27: Celery | C27: 200 | D27: 32 | E27: >95 | F27: 6.666666667 | G27: 13.75
A28: 1 | B28: Leeks (green) | C28: 400 | D28: 32 | E28: >95 | F28: 11.42857143 | G28: 27.5
A29: 1 | B29: Parsnip | C29: 2000 | D29: 32 | E29: >98 | F29: 55.55555556 | G29: 91.66666667
A30: 1 Sum | F30: 299.4209468 | G30: 277.0625
A32: 2 | B32: Bean (green) | C32: 500 | D32: 44 | E32: >95 | F32: 35.71428571 | G32: 151.25
A33: 2 | B33: Potato (cured) | C33: 4000 | D33: 40 | E33: 95 | F33: 95.23809524 | G33: 275
A34: 2 Sum | F34: 130.952381 | G34: 426.25
A36: 3 | B36: Garlic (intact bulbs) | C36: 2500 | D36: 31 | E36: 65 | F36: 83.33333333 | G36: 137.5
A37: 3 | B37: Onion (cured) | C37: 1000 | D37: 32 | E37: 70 | F37: 28.57142857 | G37: 13.75
A38: 3 | B38: Shallots | C38: 100 | D38: 32 | E38: 70 | F38: 2.5 | G38: 1.375
A39: 3 Sum | F39: 114.4047619 | G39: 152.625
A41: 4 | B41: Beans (dry) | C41: 200 | D41: 45 | E41: 40-50 | F41: 3.703703704 | G41: 0
A42: 4 | B42: Squash (winter) | C42: 9000 | D42: 50 | E42: 50-70 | F42: 257.1428571 | G42: 4125
A43: 4 | B43: Sweet Potato | C43: 300 | D43: 57 | E43: 90 | F43: 12 | G43: 9.625
A44: 4 Sum | F44: 272.8465608 | G44: 4134.625
A46: Grand Total | F46: 817.6246505 | G46: 4990.5625

Sheet Storage Data
C1: INPUTS | H1: DATABASE | V1: CALCULATED OUTPUTS
B2: Crop | C2: Qty_lbs (lbs) | D2: Qty_tons (ton) | E2: Qty_act (ton) | F2: lbs convert | G2: include | H2: Grouping # | I2: Optimum Temp (ºF ) | J2: Temp tolerance (+ or - degrees F) | K2: Optimum RH (%) | L2: Duration (days) | M2: Resp Rate (mg CO2/kg/hr) | N2: Heat prod. (BTU/ton/day) | O2: Ethylene Prod (uL/kg hr) | P2: Ethylene sensitivity (uL/L) | Q2: pre-cooling temp (ºF) | R2: pre-cooling time sensitivity (hr after harvest) | S2: highest freezing point (ºF) | T2: approximate lowest safe temp (ºF) | U2: Storage Density (lb/ft3) | V2: Volume (ft^3) | W2: total heat prod. (BTU/hr) | Z2: =B2 -> Crop | AA2: =I2 -> Optimum Temp (ºF ) | AB2: =K2 -> Optimum RH (%)
A3: 1 | B3: None | H3: 0 | I3: 0 | J3: 0 | K3: 0 | L3: 0 | M3: 0 | N3: 0 | O3: 0 | P3: 0 | Q3: 0 | R3: 0 | S3: 0 | T3: 0 | U3: 0 | V3: 0 | W3: 0 | Z3: =B3 -> None | AA3: =I3 -> 0 | AB3: =K3 -> 0
A4: 2 | B4: Artichoke (Globe) | C4: =Inputs!B9 -> 0 | D4: =Inputs!C9 -> 0 | E4: =IF(C4>0,C4/2000,IF(D4>0,D4,0)) -> 0 | F4: =E4*2000 -> 0 | G4: =IF(E4>0,1,0) -> 0 | H4: 1 | I4: 32 | J4: 0 | K4: >95 | L4: 14-21 | M4: 16 | N4: =M4*220 -> 3520 | O4: very low | P4: not | Q4: 41 | R4: 24 | S4: 29.9 | V4: =IF(F4>0,F4/U4,0) -> 0 | W4: =IF(E4>0,E4*N4,0)/24 -> 0 | Z4: Artichoke (Globe) | AA4: 32 | AB4: >95
A5: 3 | B5: Artichoke (Jerusalem) | C5: =Inputs!B10 -> 0 | D5: =Inputs!C10 -> 0 | E5: 0 | F5: =E5*2000 -> 0 | G5: =IF(E5>0,1,0) -> 0 | H5: 1 | I5: 32 | J5: 1 | K5: 90-95 | L5: 120-150 | N5: =M5*220 -> 0 | O5: very low | P5: low | S5: 28 | U5: 40 | V5: 0 | W5: =IF(E5>0,E5*N5,0)/24 -> 0 | Z5: Artichoke (Jerusalem) | AA5: 32 | AB5: 90-95
A6: 4 | B6: Asparagus | C6: =Inputs!B11 -> 0 | D6: =Inputs!C11 -> 0 | E6: 0 | F6: 0 | G6: 0 | H6: 1 | I6: 34 | J6: 2 | K6: 100 | L6: 14-21 | M6: 80 | N6: =M6*220 -> 17600 | O6: 3 | P6: toughens spears | Q6: 32 | R6: immediate | S6: 30.9 | T6: 32-36 | U6: 25 | V6: 0 | W6: 0 | Z6: Asparagus | AA6: 34 | AB6: 100
A7: 5 | B7: Basil | C7: =Inputs!B12 -> 0 | D7: =Inputs!C12 -> 0 | E7: 0 | F7: 0 | G7: 0 | H7: 2 | I7: 55 | J7: 3 | K7: 90-95 | L7: 14 | M7: 71 | N7: =M7*220 -> 15620 | O7: very low | Q7: 55 | S7: 40 | U7: 23 | V7: 0 | W7: 0 | Z7: Basil | AA7: 55 | AB7: 90-95
A8: 6 | B8: Beans (dry) | C8: =Inputs!B13 -> 200 | D8: =Inputs!C13 -> 0 | E8: 0.1 | F8: 200 | G8: 1 | H8: 4 | I8: 45 | J8: 5 | K8: 40-50 | L8: 180-300 | N8: =M8*220 -> 0 | U8: 54 | V8: 3.703703704 | W8: 0 | Z8: Beans (dry) | AA8: 45 | AB8: 40-50
A9: 7 | B9: Bean (green) | C9: =Inputs!B14 -> 500 | D9: =Inputs!C14 -> 0 | E9: 0.25 | F9: 500 | G9: 1 | H9: 2 | I9: 44 | J9: 1 | K9: >95 | L9: 10-14 | M9: 66 | N9: =M9*220 -> 14520 | O9: 0.5 | P9: 0.01 | S9: 30.7 | U9: 14 | V9: 35.71428571 | W9: 151.25 | Z9: Bean (green) | AA9: 44 | AB9: >95
A10: 8 | B10: Bean (lima) | C10: =Inputs!B15 -> 0 | D10: =Inputs!C15 -> 0 | E10: 0 | F10: 0 | G10: 0 | H10: 4 | I10: 38 | J10: 4 | K10: 90 | L10: 7 | M10: 30 | N10: =M10*220 -> 6600 | S10: 31 | T10: 34-40 | U10: 50 | V10: 0 | W10: 0 | Z10: Bean (lima) | AA10: 38 | AB10: 90
A11: 9 | B11: Bean (Snap) | C11: =Inputs!B16 -> 0 | D11: =Inputs!C16 -> 0 | E11: 0 | F11: 0 | G11: 0 | H11: 2 | I11: 44 | J11: 1 | K11: >95 | L11: 8-12 | M11: 66 | N11: 14520 | O11: 0.05 | P11: 0.01 | S11: 30.7 | T11: 45 | U11: 14 | V11: 0 | W11: 0 | Z11: Bean (Snap) | AA11: 44 | AB11: >95
A12: 10 | B12: Beet (bunched with tops) | C12: =Inputs!B17 -> 0 | D12: =Inputs!C17 -> 0 | E12: 0 | F12: 0 | G12: 0 | H12: 1 | I12: 32 | J12: 0 | K12: >98 | L12: 10-14 | M12: 5 | N12: =M12*220 -> 1100 | O12: <.1 | Q12: 41 | R12: 24 | S12: 31.3 | U12: 40 | V12: 0 | W12: 0 | Z12: Beet (bunched with tops) | AA12: 32 | AB12: >98
A13: 11 | B13: Beet (topped) | C13: =Inputs!B18 -> 700 | D13: =Inputs!C18 -> 0 | E13: 0.35 | F13: 700 | G13: 1 | H13: 1 | I13: 33 | J13: 1 | K13: 98 | L13: 120-300 | M13: 5 | N13: 1100 | O13: <.1 | P13: not particularly | Q13: 39 | R13: 4-6 | S13: 30.3 | U13: 23 | V13: 30.43478261 | W13: 16.04166667 | Z13: Beet (topped) | AA13: 33 | AB13: 98
A14: 12 | B14: Broccoli | C14: =Inputs!B19 -> 0 | D14: =Inputs!C19 -> 0 | E14: 0 | F14: 0 | G14: 0 | H14: 1 | I14: 32 | J14: 0 | K14: >98 | L14: 14-21 | M14: 20 | N14: 4400 | O14: <.1 | P14: extremely | Q14: 32 | S14: 30.9 | U14: 13 | V14: 0 | W14: 0 | Z14: Broccoli | AA14: 32 | AB14: >98
A15: 13 | B15: Brussels Sprouts | C15: =Inputs!B20 -> 400 | D15: =Inputs!C20 -> 0 | E15: 0.2 | F15: 400 | G15: 1 | H15: 1 | I15: 32 | J15: 0 | K15: 95 | L15: 20-30 | M15: 15 | N15: 3300 | O15: <.25 | P15: sensitive | S15: 30.5 | U15: 25 | V15: 16 | W15: 27.5 | Z15: Brussels Sprouts | AA15: 32 | AB15: 95
A16: 14 | B16: Cabage | C16: =Inputs!B21 -> 2000 | D16: =Inputs!C21 -> 0 | E16: 1 | F16: 2000 | G16: 1 | H16: 1 | I16: 32 | J16: 0 | K16: >98 | L16: up to 150 | M16: 4 | N16: 880 | O16: <.1 | P16: 1 | S16: 30.5 | U16: 17 | V16: 117.6470588 | W16: 36.66666667 | Z16: Cabage | AA16: 32 | AB16: >98
A17: 15 | B17: Carrot (baby) | C17: =Inputs!B22 -> 0 | D17: =Inputs!C22 -> 0 | E17: 0 | F17: 0 | G17: 0 | H17: 1 | I17: 32 | J17: 0 | K17: >98 | L17: 30-40 | M17: 4 | N17: 880 | O17: <.1 | P17: 1 | S17: 29.8 | U17: 26 | V17: 0 | W17: 0 | Z17: Carrot (baby) | AA17: 32 | AB17: >98
A18: 16 | B18: Carrot (mature) | C18: =Inputs!B23 -> 1200 | D18: =Inputs!C23 -> 0 | E18: 0.6 | F18: 1200 | G18: 1 | H18: 1 | I18: 32 | J18: 0 | K18: >98 | L18: 200-270 | M18: 10 | N18: 2200 | O18: <.1 | P18: 0.2 | Q18: 41 | R18: 1 | S18: 29.8 | U18: 22 | V18: 54.54545455 | W18: 55 | Z18: Carrot (mature) | AA18: 32 | AB18: >98
A19: 17 | B19: Cauliflower | C19: =Inputs!B24 -> 0 | D19: =Inputs!C24 -> 0 | E19: 0 | F19: 0 | G19: 0 | H19: 1 | I19: 32 | J19: 0 | K19: >98 | L19: 14-21 | M19: 20 | N19: =M19*220 -> 4400 | O19: <.1 | P19: extremely | Q19: 32 | S19: 30.6 | U19: 16 | V19: 0 | W19: 0 | Z19: Cauliflower | AA19: 32 | AB19: >98
A20: 18 | B20: Celeriac | C20: =Inputs!B25 -> 300 | D20: =Inputs!C25 -> 0 | E20: =IF(C20>0,C20/2000,IF(D20>0,D20,0)) -> 0.15 | F20: =E20*2000 -> 300 | G20: =IF(E20>0,1,0) -> 1 | H20: 1 | I20: 34 | J20: 2 | K20: 98 | L20: 180-240 | M20: 6.5 | N20: =M20*220 -> 1430 | O20: <.1 | P20: sensitive | Q20: 32 | U20: 42 | V20: =IF(F20>0,F20/U20,0) -> 7.142857143 | W20: =IF(E20>0,E20*N20,0)/24 -> 8.9375 | Z20: Celeriac | AA20: 34 | AB20: 98
A21: 19 | B21: Celery | C21: =Inputs!B26 -> 200 | D21: =Inputs!C26 -> 0 | E21: 0.1 | F21: 200 | G21: 1 | H21: 1 | I21: 32 | J21: 1 | K21: >95 | L21: 37-50 | M21: 15 | N21: 3300 | O21: <.1 | P21: not realy (<10) | Q21: 32 | R21: 1 | S21: 31.1 | U21: 30 | V21: 6.666666667 | W21: 13.75 | Z21: Celery | AA21: 32 | AB21: >95
A22: 20 | B22: Chard (swiss) | C22: =Inputs!B27 -> 0 | D22: =Inputs!C27 -> 0 | E22: 0 | F22: 0 | G22: 0 | H22: 1 | I22: 32 | J22: 1 | K22: 97 | L22: 7-14 | M22: 18 | N22: =M22*220 -> 3960 | O22: 13 | P22: very high | U22: 8.5 | V22: 0 | W22: 0 | Z22: Chard (swiss) | AA22: 32 | AB22: 97
A23: 21 | B23: Corn (Sweet) | C23: =Inputs!B28 -> 0 | D23: =Inputs!C28 -> 0 | E23: 0 | F23: 0 | G23: 0 | H23: 1 | I23: 32 | J23: 0 | K23: >98 | L23: 14 | M23: 40 | N23: 8800 | O23: 0 | P23: not very | Q23: 32 | R23: 1 | S23: 30.9 | U23: 16 | V23: 0 | W23: 0 | Z23: Corn (Sweet) | AA23: 32 | AB23: >98
A24: 22 | B24: Cucumber | C24: =Inputs!B29 -> 0 | D24: =Inputs!C29 -> 0 | E24: 0 | F24: 0 | G24: 0 | H24: 2 | I24: 52 | J24: 2 | K24: 95 | L24: 10 | M24: 26 | N24: 5720 | O24: <.1 | P24: very high | S24: 31.1 | T24: 45 | U24: 20 | V24: 0 | W24: 0 | Z24: Cucumber | AA24: 52 | AB24: 95
A25: 23 | B25: Eggplant | C25: =Inputs!B30 -> 0 | D25: =Inputs!C30 -> 0 | E25: 0 | F25: 0 | G25: 0 | H25: 2 | I25: 52 | J25: 1 | K25: 95 | L25: 10 | M25: 100 | N25: 22000 | O25: 0.5 | P25: moderate-high | Q25: 50 | R25: 1 | S25: 30.6 | T25: 45 | V25: 0 | W25: 0 | Z25: Eggplant | AA25: 52 | AB25: 95
A26: 24 | B26: Endive | C26: =Inputs!B31 -> 0 | D26: =Inputs!C31 -> 0 | E26: 0 | F26: 0 | G26: 0 | H26: 1 | I26: 32 | J26: 0 | K26: >98 | L26: 14-21 | M26: 45 | N26: 9900 | O26: <.1 | P26: leaf yellowing | Q26: 32 | S26: 31.6 | U26: 23 | V26: 0 | W26: 0 | Z26: Endive | AA26: 32 | AB26: >98
A27: 25 | B27: Escarole | C27: =Inputs!B32 -> 0 | D27: =Inputs!C32 -> 0 | E27: 0 | F27: 0 | G27: 0 | H27: 1 | I27: 32 | J27: 0 | K27: >98 | L27: 14-21 | M27: 45 | N27: 9900 | O27: <.1 | P27: leaf yellowing | Q27: 32 | U27: 23 | V27: 0 | W27: 0 | Z27: Escarole | AA27: 32 | AB27: >98
A28: 26 | B28: Garlic (intact bulbs) | C28: =Inputs!B33 -> 2500 | D28: =Inputs!C33 -> 0 | E28: 1.25 | F28: 2500 | G28: 1 | H28: 3 | I28: 31 | J28: 1 | K28: 65 | L28: 250-300 | M28: 12 | N28: 2640 | O28: very low | P28: not | S28: 30 | U28: 30 | V28: 83.33333333 | W28: 137.5 | Z28: Garlic (intact bulbs) | AA28: 31 | AB28: 65
A29: 27 | B29: Greens (baby greens salad mix) | C29: =Inputs!B34 -> 0 | D29: =Inputs!C34 -> 0 | E29: 0 | F29: 0 | G29: 0 | H29: 1 | I29: 34 | J29: 2 | K29: >95 | L29: 10-14 | M29: 30 | N29: =M29*220 -> 6600 | O29: very low | P29: extremely | Q29: 32 | R29: asap | U29: 8.5 | V29: 0 | W29: 0 | Z29: Greens (baby greens salad mix) | AA29: 34 | AB29: >95
A30: 28 | B30: Kale | C30: =Inputs!B35 -> 0 | D30: =Inputs!C35 -> 0 | E30: 0 | F30: 0 | G30: 0 | H30: 1 | I30: 32 | J30: 0 | K30: 95 | M30: 15 | N30: 3300 | O30: <.1 | P30: very high | S30: 31.1 | U30: 31 | V30: 0 | W30: 0 | Z30: Kale | AA30: 32 | AB30: 95
A31: 29 | B31: Kohlrabi | C31: =Inputs!B36 -> 0 | D31: =Inputs!C36 -> 0 | E31: 0 | F31: 0 | G31: 0 | H31: 1 | I31: 32 | J31: 0 | K31: >98 | L31: 60-90 | M31: 10 | N31: 2200 | O31: very low | P31: low | S31: 30.2 | U31: 42 | V31: 0 | W31: 0 | Z31: Kohlrabi | AA31: 32 | AB31: >98
A32: 30 | B32: Leeks (green) | C32: =Inputs!B37 -> 400 | D32: =Inputs!C37 -> 0 | E32: 0.2 | F32: 400 | G32: 1 | H32: 1 | I32: 32 | J32: 1 | K32: >95 | L32: 60-90 | M32: 15 | N32: 3300 | O32: <.1 | P32: moderate | Q32: 32 | R32: promptly | S32: 30.7 | U32: 35 | V32: 11.42857143 | W32: 27.5 | Z32: Leeks (green) | AA32: 32 | AB32: >95
A33: 31 | B33: Lettuce (head) | C33: =Inputs!B38 -> 0 | D33: =Inputs!C38 -> 0 | E33: 0 | F33: 0 | G33: 0 | H33: 1 | I33: 32 | J33: 0 | K33: >98 | L33: 25 | M33: 20 | N33: 4400 | O33: <.1 | P33: leaf yellowing | Q33: 32 | S33: 31.6 | U33: 25 | V33: 0 | W33: 0 | Z33: Lettuce (head) | AA33: 32 | AB33: >98
A34: 32 | B34: Melon (Cantaloupe) | C34: =Inputs!B39 -> 0 | D34: =Inputs!C39 -> 0 | E34: 0 | F34: 0 | G34: 0 | H34: 2 | I34: 38 | J34: 2 | K34: 95 | L34: 5-15 | M34: 5 | N34: 1100 | O34: 10 | P34: moderately sensitive | S34: 29.9 | T34: 36-41 | U34: 25 | V34: 0 | W34: 0 | Z34: Melon (Cantaloupe) | AA34: 38 | AB34: 95
A35: 33 | B35: Melon (Honeydew) | C35: =Inputs!B40 -> 0 | D35: =Inputs!C40 -> 0 | E35: 0 | F35: 0 | G35: 0 | H35: 3 | I35: 45 | J35: 0 | K35: 90-95 | L35: 20 | M35: 10 | N35: 2200 | O35: 20 | P35: ripens | S35: 30.3 | T35: 45 | U35: 24 | V35: 0 | W35: 0 | Z35: Melon (Honeydew) | AA35: 45 | AB35: 90-95
A36: 34 | B36: Melon (Watermelon) | C36: =Inputs!B41 -> 0 | D36: =Inputs!C41 -> 0 | E36: 0 | F36: 0 | G36: 0 | H36: 3 | I36: 55 | J36: 5 | K36: 90 | L36: 14 | M36: 10 | N36: =M36*220 -> 2200 | O36: 0.5 | P36: low | Q36: extremely | S36: 50 | T36: 40 | U36: 27 | V36: 0 | W36: 0 | Z36: Melon (Watermelon) | AA36: 55 | AB36: 90
A37: 35 | B37: Okra | C37: =Inputs!B42 -> 0 | D37: =Inputs!C42 -> 0 | E37: =IF(C37>0,C37/2000,IF(D37>0,D37,0)) -> 0 | F37: 0 | G37: 0 | H37: 3 | I37: 47 | J37: 2 | K37: >90 | L37: 7-14 | M37: 20 | N37: =M37*220 -> 4400 | O37: 0.5 | P37: 1 | Q37: 32 | R37: asap | S37: 28.7 | T37: 45 | V37: =IF(F37>0,F37/U37,0) -> 0 | W37: 0 | Z37: Okra | AA37: 47 | AB37: >90
A38: 36 | B38: Onion (cured) | C38: =Inputs!B43 -> 1000 | D38: =Inputs!C43 -> 0 | E38: 0.5 | F38: 1000 | G38: 1 | H38: 3 | I38: 32 | J38: 0 | K38: 70 | L38: 200-300 | M38: 3 | N38: =M38*220 -> 660 | O38: <.1 | P38: very low | S38: 30.6 | U38: 35 | V38: 28.57142857 | W38: 13.75 | Z38: Onion (cured) | AA38: 32 | AB38: 70
A39: 37 | B39: Onion (green) | C39: =Inputs!B44 -> 0 | D39: =Inputs!C44 -> 0 | E39: 0 | F39: 0 | G39: 0 | H39: 1 | I39: 32 | J39: 0 | K39: 97 | L39: 20-30 | M39: 3 | N39: 660 | O39: <.1 | P39: very low | Q39: <29 | R39: 4-6 | S39: 30.4 | U39: 22 | V39: 0 | W39: 0 | Z39: Onion (green) | AA39: 32 | AB39: 97
A40: 38 | B40: Parsley | C40: =Inputs!B45 -> 0 | D40: =Inputs!C45 -> 0 | E40: 0 | F40: 0 | G40: 0 | H40: 1 | I40: 32 | J40: 0 | K40: 95 | L40: 60-90 | M40: 30 | N40: 6600 | O40: 0.08 | P40: 0.4 | R40: rapid | S40: 30 | V40: 0 | W40: 0 | Z40: Parsley | AA40: 32 | AB40: 95
A41: 39 | B41: Parsnip | C41: =Inputs!B46 -> 2000 | D41: =Inputs!C46 -> 0 | E41: 1 | F41: 2000 | G41: 1 | H41: 1 | I41: 32 | J41: 0 | K41: >98 | L41: 200-270 | M41: 10 | N41: =M41*220 -> 2200 | O41: <.1 | P41: high | Q41: 41 | R41: immediate | S41: 30.4 | U41: 36 | V41: 55.55555556 | W41: 91.66666667 | Z41: Parsnip | AA41: 32 | AB41: >98
A42: 40 | B42: Pea (green) | C42: =Inputs!B47 -> 0 | D42: =Inputs!C47 -> 0 | E42: 0 | F42: 0 | G42: 0 | H42: 1 | I42: 32 | J42: 1 | K42: >95 | L42: 7-14 | M42: 40 | N42: 8800 | O42: <.1 | P42: sensitive | Q42: 32 | R42: prompt | S42: 30.9 | U42: 23 | V42: 0 | W42: 0 | Z42: Pea (green) | AA42: 32 | AB42: >95
A43: 41 | B43: Peppers (hot) | C43: =Inputs!B48 -> 0 | D43: =Inputs!C48 -> 0 | E43: 0 | F43: 0 | G43: 0 | H43: 4 | I43: 40 | J43: 8 | K43: 60-70 | L43: 180 | M43: 8 | N43: 1760 | O43: <.1 | P43: variety dependant | U43: 21 | V43: 0 | W43: 0 | Z43: Peppers (hot) | AA43: 40 | AB43: 60-70
A44: 42 | B44: Pepper (sweet) | C44: =Inputs!B49 -> 0 | D44: =Inputs!C49 -> 0 | E44: 0 | F44: 0 | G44: 0 | H44: 2 | I44: 50 | J44: 5 | K44: 95 | L44: 14-21 | M44: 7 | N44: 1540 | O44: <.1 | P44: sensitive | Q44: 45 | R44: immediate | S44: 30.7 | T44: 45 | U44: 41 | V44: 0 | W44: 0 | Z44: Pepper (sweet) | AA44: 50 | AB44: 95
A45: 43 | B45: Potato (cured) | C45: =Inputs!B50 -> 4000 | D45: =Inputs!C50 -> 0 | E45: 2 | F45: 4000 | G45: 1 | H45: 2 | I45: 40 | J45: 2 | K45: 95 | L45: 30-360 | M45: 15 | N45: 3300 | O45: <.1 | P45: not very | S45: 30.9 | T45: 38 | U45: 42 | V45: 95.23809524 | W45: 275 | Z45: Potato (cured) | AA45: 40 | AB45: 95
A46: 44 | B46: Pumpkin | C46: =Inputs!B51 -> 0 | D46: =Inputs!C51 -> 0 | E46: 0 | F46: 0 | G46: 0 | H46: 4 | I46: 52 | J46: 2 | K46: 60 | L46: 60-90 | M46: 100 | N46: 22000 | O46: trace amounts | P46: sensitive | S46: 30.5 | T46: 50 | U46: 35 | V46: 0 | W46: 0 | Z46: Pumpkin | AA46: 52 | AB46: 60
A47: 45 | B47: Radish (topped, winter) | C47: =Inputs!B52 -> 0 | D47: =Inputs!C52 -> 0 | E47: 0 | F47: 0 | G47: 0 | H47: 1 | I47: 32 | J47: 1 | K47: 95 | L47: 60-120 | M47: 16 | N47: 3520 | O47: <.1 | P47: not particularly | Q47: 35 | V47: 0 | W47: 0 | Z47: Radish (topped, winter) | AA47: 32 | AB47: 95
A48: 46 | B48: Rhubarb | C48: =Inputs!B53 -> 0 | D48: =Inputs!C53 -> 0 | E48: 0 | F48: 0 | G48: 0 | H48: 1 | I48: 32 | J48: 0 | K48: >95 | L48: 15-30 | M48: 10 | N48: 2200 | O48: <.1 | P48: low | Q48: 32 | S48: 30.3 | U48: 34 | V48: 0 | W48: 0 | Z48: Rhubarb | AA48: 32 | AB48: >95
A49: 47 | B49: Rutabega | C49: =Inputs!B54 -> 0 | D49: =Inputs!C54 -> 0 | E49: 0 | F49: 0 | G49: 0 | H49: 1 | I49: 32 | J49: 0 | K49: >98 | L49: 120-150 | M49: 5 | N49: 1100 | O49: <.1 | Q49: 32 | R49: 3 | S49: 30 | U49: 42 | V49: 0 | W49: 0 | Z49: Rutabega | AA49: 32 | AB49: >98
A50: 48 | B50: Shallots | C50: =Inputs!B55 -> 100 | D50: =Inputs!C55 -> 0 | E50: =IF(C50>0,C50/2000,IF(D50>0,D50,0)) -> 0.05 | F50: =E50*2000 -> 100 | G50: =IF(E50>0,1,0) -> 1 | H50: 3 | I50: 32 | J50: 0 | K50: 70 | L50: 200-300 | M50: 3 | N50: =M50*220 -> 660 | O50: <.1 | P50: very low | S50: 30.6 | U50: 40 | V50: =IF(F50>0,F50/U50,0) -> 2.5 | W50: =IF(E50>0,E50*N50,0)/24 -> 1.375 | Z50: Shallots | AA50: 32 | AB50: 70
A51: 49 | B51: Spinach | C51: =Inputs!B56 -> 0 | D51: =Inputs!C56 -> 0 | E51: 0 | F51: 0 | G51: 0 | H51: 1 | I51: 32 | J51: 0 | K51: >98 | L51: 10-14 | M51: 20 | N51: 4400 | O51: <.1 | P51: rapid yellowing | S51: 31.5 | U51: 31 | V51: 0 | W51: 0 | Z51: Spinach | AA51: 32 | AB51: >98
A52: 50 | B52: Squash (Summer) | C52: =Inputs!B57 -> 0 | D52: =Inputs!C57 -> 0 | E52: 0 | F52: 0 | G52: 0 | H52: 4 | I52: 45 | J52: 2 | K52: 95 | L52: <14 | M52: 25 | N52: 5500 | O52: low-moderate | P52: increased yellowing | S52: 31.1 | T52: 45 | U52: 35 | V52: 0 | W52: 0 | Z52: Squash (Summer) | AA52: 45 | AB52: 95
A53: 51 | B53: Squash (winter) | C53: =Inputs!B58 -> 9000 | D53: =Inputs!C58 -> 0 | E53: 4.5 | F53: 9000 | G53: 1 | H53: 4 | I53: 50 | J53: 0 | K53: 50-70 | L53: 60-90 | M53: 100 | N53: 22000 | O53: trace amounts | P53: yellowing | S53: 30.5 | T53: 45 | U53: 35 | V53: 257.1428571 | W53: 4125 | Z53: Squash (winter) | AA53: 50 | AB53: 50-70
A54: 52 | B54: Sweet Potato | C54: =Inputs!B59 -> 300 | D54: =Inputs!C59 -> 0 | E54: 0.15 | F54: 300 | G54: 1 | H54: 4 | I54: 57 | J54: 2 | K54: 90 | L54: 360 | M54: 7 | N54: 1540 | O54: <.1 | P54: should be avoided | S54: 29.7 | T54: 55 | U54: 25 | V54: 12 | W54: 9.625 | Z54: Sweet Potato | AA54: 57 | AB54: 90
A55: 53 | B55: Tomato (Mature green) | C55: =Inputs!B60 -> 0 | D55: =Inputs!C60 -> 0 | E55: 0 | F55: 0 | G55: 0 | H55: 2 | I55: 52 | J55: 2 | K55: 95 | L55: 7-21 | M55: 10 | N55: 2200 | O55: increases w/ ripening | P55: causes ripening | Q55: 54 | S55: 31 | T55: 55 | U55: 25 | V55: 0 | W55: 0 | Z55: Tomato (Mature green) | AA55: 52 | AB55: 95
A56: 54 | B56: Tomato (firm ripe) | C56: =Inputs!B61 -> 0 | D56: =Inputs!C61 -> 0 | E56: 0 | F56: 0 | G56: 0 | H56: 2 | I56: 55 | J56: 0 | K56: 90 | L56: 3 | M56: 20 | N56: 4400 | O56: 1-10 | P56: <.5 | S56: 31.1 | T56: 45-50 | U56: 21 | V56: 0 | W56: 0 | Z56: Tomato (firm ripe) | AA56: 55 | AB56: 90
A57: 55 | B57: Turnip | C57: =Inputs!B62 -> 0 | D57: =Inputs!C62 -> 0 | E57: =IF(C57>0,C57/2000,IF(D57>0,D57,0)) -> 0 | F57: =E57*2000 -> 0 | G57: =IF(E57>0,1,0) -> 0 | H57: 1 | I57: 32 | J57: 0 | K57: >98 | L57: 120-150 | M57: 5 | N57: =M57*220 -> 1100 | O57: <.1 | Q57: 32 | R57: 3 | S57: 30 | U57: 42 | V57: =IF(F57>0,F57/U57,0) -> 0 | W57: =IF(E57>0,E57*N57,0)/24 -> 0 | Z57: Turnip | AA57: 32 | AB57: >98
N59: =AVERAGE(N3:N58) -> 5166 | U59: =AVERAGE(U3:U58) -> 27.94
B62: Sources: | H62: cornell | I62: handbook 66 | J62: handbook 66 | K62: handbook 66 | L62: handbook 66 | M62: handbook 66 | N62: handbook 66 | O62: handbook 66 | P62: handbook 66 | Q62: handbook 66 | R62: handbook 66 | S62: handbook 66 | U62: heatcraft manual
U63: Key Technology
